Cogmind - Beta 17 @@@ ROGUE MODE // 2026.07.29 @ 08:08:31 Player: gortmind Result: Destroyed by as-18485 with Assembled Blade Performance ------------- Evolutions (0) 0 Regions Visited (2) 400 Robots Destroyed (18) 90 Value Destroyed (275) 275 Prototype IDs (0) 0 Alien Tech Used (0) 0 Bonus (-13) -13 TOTAL SCORE: 752 Bonus ------- Friendly Fire -13 Cogmind --------- Core Integrity 0/250 Matter 274/300 Energy 43/100 System Corruption 10% Temperature Cool (0) Movement Core (150) Ox2 Location -10/Mines Parts ------- > --- POWER (1) -------- (None) > --- PROPULSION (2) --- (None) > --- UTILITY (2) ------ Cooling System > --- WEAPON (2) ------- Spread Laser Spread Laser > --- INVENTORY (5) ---- Scrap Shield Spread Laser Spread Laser Mining Laser Peak State ------------ > --- POWER ------------ Light Ion Engine > --- PROPULSION ------- Wheel Compact Wheel > --- UTILITY ---------- Cooling System Small Storage Unit > --- WEAPON ----------- Spread Laser Spread Laser > --- INVENTORY -------- Light Treads EM Pulse Gun Spread Laser Spread Laser Light Assault Rifle Light Assault Rifle Light Cannon Datajack [Rating: 11] Favorites ----------- Power Light Ion Engine Engine Light Ion Engine Propulsion Wheel Treads Light Treads Leg Aluminum Leg Wheel Wheel Utility Small Storage Unit Device Cooling System Storage Small Storage Unit Protection Medium Armor Plating Weapon Spread Laser Energy Gun Spread Laser Ballistic Gun Light Assault Rifle Ballistic Cannon Light Cannon Special Weapon Mining Laser Build | -11 -10 -10 ------- Run | Yrd Mat Min Slots Evolved . | . . . Power . | . . . Propulsion . | . . . Utility . | . . . Weapon . | . . . Parts Attached 21 | 9 12 . Power 3 | 2 1 . Engine 3 | 2 1 . Core . | . . . Reactor . | . . . Propulsion 6 | 2 4 . Treads 2 | . 2 . Leg 2 | 2 . . Wheel 2 | . 2 . Hover . | . . . Flight . | . . . Utility 5 | 3 2 . Device 2 | 1 1 . Storage 2 | 2 . . Processor . | . . . Hackware . | . . . Protection 1 | . 1 . Artifact . | . . . Weapon 7 | 2 5 . Energy Gun 2 | . 2 . Energy Cannon . | . . . Ballistic Gun 2 | 2 . . Ballistic Cannon 1 | . 1 . Launcher . | . . . Special Weapon 2 | . 2 . Impact Weapon . | . . . Slashing Weapon . | . . . Piercing Weapon . | . . . Special Melee Weapon . | . . . Unidentified Prototypes . | . . . Parts Lost 8 | . 4 4 Power 3 | . 2 1 Propulsion 2 | . . 2 Utility 2 | . 1 1 Weapon 1 | . 1 . Highest Loss Streak 3 | . 3 3 To Critical Strikes . | . . . Average Backups 5 | 5 6 4 Power . | . . . Propulsion 1 | 3 1 . Utility . | . . 1 Weapon 2 | . 3 3 Tool/Special . | . . . Unused Backups 7 | 1 3 3 Power 2 | 1 1 . Propulsion . | . . . Utility 1 | . . 1 Weapon 3 | . 1 2 Tool/Special 1 | . 1 . Average Slot Usage (%) 88 | . 93 73 Engine 10 | . 11 5 Treads 2 | . 2 . Leg 5 | . 6 . Wheel 16 | . 16 18 Device 12 | . 12 14 Storage 7 | . 9 . Protection 4 | . 4 5 Energy Gun 18 | . 15 28 Ballistic Gun 4 | . 5 . Ballistic Cannon 3 | . 4 . Special Weapon 1 | . 2 . Peak Build Rating 11 | 7 11 11 Average Rating 7 | 4 8 8 On Entrance 6 | . 7 11 Avg Prop Armor Cover (%) . | . . . Naked Turns . | . . . Heaviest Build 18 | 13 18 18 Greatest Support 40 | 20 40 26 Greatest Overweight (x) 3 | 1 3 2 Average Overweight (x) . | . . . Largest Inventory Capacity 8 | 8 8 5 Average Capacity 6 | 7 6 5 Most Carried 8 | 8 8 5 Average Carried 5 | 5 6 5 Final Capacity 8 | 8 5 5 Final Carried 7 | 7 5 5 Class Distribution -------------------- 100% | Mutant Dominant Class ---------------- Mutant | -10/Materials Mutant | -10/Mines Resources | -11 -10 -10 ----------- Run | Yrd Mat Min Matter Collected 612 | 213 349 50 Remotely . | . . . Salvage Created 454 | 115 323 16 Parts 29 | 6 23 . Haulers Intercepted 1 | . 1 . Recyclers Shooed 1 | . 1 . Parts Field Recycled . | . . . Retrieved Matter . | . . . Parts Self-Destructed . | . . . Prevented . | . . . Parts Restored . | . . . Kills | -11 -10 -10 ------- Run | Yrd Mat Min Combat Hostiles Destroyed 9 | . 7 2 Guns 7 | . 5 2 Cannons 2 | . 2 . Classes Destroyed 9 | 2 5 2 Worker 1 | . 1 . Tunneler 3 | 3 . . Hauler 1 | . 1 . Recycler 2 | 1 1 . Watcher 3 | . 3 . Swarmer 5 | . 5 . Grunt 2 | . 2 . Demolisher 1 | . . 1 Assembled 1 | . . 1 Best Kill Streak 4 | 1 4 1 Combat Bots Only 2 | . 2 1 Max Kills in Single Turn 1 | 1 1 1 Gunslinging . | . . . Exploded . | . . . Melee . | . . . Uniques/NPCs Destroyed . | . . . Combat | -11 -10 -10 -------- Run | Yrd Mat Min Hostile Shots Fired 45 | . 32 13 Missed 10 | . 9 1 Hits 35 | . 23 12 Melee 2 | . . 2 Projectile 33 | . 23 10 AOE 11 | . . 11 Critical Strikes 1 | . 1 . Damage Taken 982 | . 509 473 Core 274 | . 96 178 Absorbed by Shields . | . . . Core Remaining (%) 100 | 100 . . Volleys Fired 74 | 21 45 8 Largest 2 | 2 2 2 Hottest 130 | 40 130 130 Shots Fired 141 | 42 83 16 Gun 115 | 42 57 16 Cannon 17 | . 17 . Launcher . | . . . Special 9 | . 9 . Kinetic 87 | 42 45 . Thermal 54 | . 38 16 Explosive . | . . . Electromagnetic . | . . . Robot Hit Streak 6 | 4 5 6 Robot Miss Streak 8 | 2 8 6 Penetration Max . | . . . Secondary Targets . | . . . Shots Hit Robots 86 | 26 44 16 Core Hits 61 | 8 34 19 Critical Kills . | . . . Critical Parts Destroyed . | . . . Critical Strikes 1 | . 1 . Blast 1 | . 1 . Melee Attacks . | . . . Impact . | . . . Slashing . | . . . Piercing . | . . . Sneak Attacks . | . . . Combat Hostiles . | . . . Follow-up Attacks . | . . . Damage Inflicted 905 | 222 486 197 Guns 760 | 222 341 197 Cannons 145 | . 145 . Explosions . | . . . Melee . | . . . Ramming . | . . . Kinetic 470 | 222 248 . Thermal 435 | . 238 197 Explosive . | . . . Electromagnetic . | . . . Impact . | . . . Slashing . | . . . Piercing . | . . . Highest Corruption 10 | . 10 10 Average Corruption 10 | . 10 10 Corruption Purged . | . . . Corruption Blocked . | . . . Effects 34 | . 25 9 Message Errors 7 | . 5 2 Matter Fused 8 | . 5 3 Heat Flow Errors 6 | . 6 . Energy Discharges 2 | . 2 . Parts Rejected 1 | . 1 . Data Loss (minor) 3 | . 1 2 Misfires 3 | . 2 1 Alerts 2 | . 2 . Weapon Failures 2 | . 1 1 Overload Shots . | . . . Overflow Damage . | . . . Projectiles . | . . . Explosions . | . . . Melee . | . . . Knockbacks 4 | . 4 . Impact . | . . . Kinetic 3 | . 3 . Secondary 1 | . 1 . Self-Inflicted Damage . | . . . Shots . | . . . Rammed . | . . . Targets Rammed . | . . . Kicked . | . . . Crushed . | . . . Highest Temperature 237 | . 237 33 Average Temperature 34 | . 36 16 Received Heat Transfer 42 | . 42 . Effects 1 | . 1 . Interference 1 | . 1 . Siege Activations . | . . . Martial Activations . | . . . Shielding Activations . | . . . Robots Disrupted . | . . . Combat Hostiles . | . . . Robots Corrupted . | . . . Combat Hostiles . | . . . Parts Fried . | . . . Impact Corruptions . | . . . Robots Melted . | . . . Combat Hostiles . | . . . Parts Melted . | . . . Heat Transferred 535 | . 295 240 Parts Sabotaged . | . . . Parts Stolen . | . . . Parts Stripped . | . . . Power Chain Reactions . | . . . Alert | -11 -10 -10 ------- Run | Yrd Mat Min Maximum Alert Level . | . . . Low Security (%) 100 | 100 100 100 Level 1 . | . . . Level 2 . | . . . Level 3 . | . . . Level 4 . | . . . Level 5 . | . . . High Security . | . . . Max Security . | . . . Peak Influence 85 | 5 85 20 Initial . | . . . Average 16 | . 27 . Influence Increases 309 | 20 269 20 Destroy 0b10 Robot/C 160 | . 140 20 Destroy 0b10 Robot/NC 50 | 20 30 . Destroy Leader 28 | . 28 . Successful Hack 5 | . 5 . Disable Machine 30 | . 30 . Destroy Structure 6 | . 6 . Lose Combat Pursuer 30 | . 30 . Influence Decreases 309 | 20 269 20 Time Decay 249 | 20 229 . Lost Part 60 | . 40 20 Squads Dispatched 1 | . 1 . Investigation 1 | . 1 . Extermination . | . . . Reinforcement . | . . . Assault . | . . . Garrison . | . . . Intercept . | . . . Searches Triggered . | . . . Construction Impeded . | . . . Haulers Reinforced . | . . . Active Scanning Responses . | . . . Cargo Convoy Interrupts . | . . . Stealth | -11 -10 -10 --------- Run | Yrd Mat Min Distress Signals 3 | . 2 1 Communications Jammed . | . . . Distress Signals . | . . . Times Spotted 27 | . 17 10 Peak Tracking Total 6 | . 5 6 Tactical Retreats 1 | . 1 . Traps | -11 -10 -10 ------- Run | Yrd Mat Min Traps Triggered 2 | . 2 . Indirectly . | . . . Trap Hack Attempts . | . . . Triggered . | . . . Disarmed . | . . . Reprogrammed . | . . . Reused . | . . . Traps Extracted . | . . . Installed . | . . . Triggered . | . . . Machines | -11 -10 -10 ---------- Run | Yrd Mat Min Machines Disabled 2 | . 2 . Max in Single Turn 1 | . 1 . Machines Repaired . | . . . Machines Dismantled . | . . . Machines Sabotaged . | . . . Overloaded Fab Kills . | . . . Hacking | -11 -10 -10 --------- Run | Yrd Mat Min Machines Accessed 3 | . 3 . Terminals 3 | . 3 . Fabricators . | . . . Repair Stations . | . . . Recycling Units . | . . . Scanalyzers . | . . . Garrison Access . | . . . Total Hacks 7 | . 7 . Successful 2 | . 2 . Failed 5 | . 5 . Catastrophic . | . . . Database Lockouts . | . . . Manual . | . . . Terminals 7 | . 7 . Fabricators . | . . . Repair Stations . | . . . Recycling Units . | . . . Scanalyzers . | . . . Garrison Access . | . . . Terminal Hacks 2 | . 2 . Reinforcement Status 1 | . 1 . Hauler Manifests 1 | . 1 . Fabricator Hacks . | . . . Repair Station Hacks . | . . . Recycling Unit Hacks . | . . . Scanalyzer . | . . . Garrison Access Hacks . | . . . Unauthorized Hacks . | . . . Terminals . | . . . Fabricators . | . . . Repair Stations . | . . . Recycling Units . | . . . Scanalyzers . | . . . Garrison Access . | . . . Data Cores Recovered . | . . . Used . | . . . Hacking Detections 3 | . 3 . Full Trace Events . | . . . Feedback Events . | . . . Feedback Blocked . | . . . Robot Schematics Acquired . | . . . Robots Built . | . . . Authchips . | . . . Time . | . . . Total Robot Build Rating . | . . . Part Schematics Acquired . | . . . Parts Built . | . . . Authchips . | . . . Time . | . . . Total Part Build Rating . | . . . Part Studies Acquired . | . . . Parts Repaired . | . . . Time . | . . . Parts Recycled . | . . . Recycled Matter . | . . . Retrieved Matter . | . . . Retrieved Components . | . . . Parts Scanalyzed . | . . . Part Schematics Acquired . | . . . Parts Damaged . | . . . Bothacking | -11 -10 -10 ------------ Run | Yrd Mat Min Used RIF Installer . | . . . Robots Hacked . | . . . Non-combat . | . . . Combat . | . . . Robot Hacks Applied . | . . . Relay Couplers Released . | . . . Fabnet Peak Effective % . | . . . Robots Rewired . | . . . Allies Hacked . | . . . Hacks Repelled . | . . . Allies | -11 -10 -10 -------- Run | Yrd Mat Min Total Allies . | . . . Largest Group . | . . . Highest-Rated Group . | . . . Highest-Rated Ally . | . . . Total Orders . | . . . Ally Attacks . | . . . Total Damage . | . . . Kills . | . . . Allies Corrupted . | . . . Allies Melted . | . . . Intel | -11 -10 -10 ------- Run | Yrd Mat Min Active Infowar (turns) 193 | 23 170 . Seismic 193 | 23 170 . Robot Analysis Total . | . . . Derelict Logs Recovered 1 | . . 1 Drone Launches . | . . . Drone Recoveries . | . . . Exploration | -11 -10 -10 ------------- Run | Yrd Mat Min Turns Passed 1275 | 285 759 231 Spaces Moved 645 | 122 377 146 Core 21 | 7 3 11 Treads 59 | . 59 . Legs 185 | 115 70 . Wheels 380 | . 245 135 Hover . | . . . Flight . | . . . Fastest Speed 50 | 50 90 80 Average Speed 114 | 167 107 89 Slowest Speed 200 | 190 200 150 Overloaded Moves . | . . . Propulsion Burnouts . | . . . Robots Hopped . | . . . Potential Cave-ins 2 | . 2 . Cave-ins Triggered 1 | . 1 . Exploration Rate (%) 28 | 4 46 36 Regions Visited 2 Branch Regions 1 Pre-discovered Areas . | . . . Known Exits Taken . | . . . Unknown Exits Taken 2 | 1 1 . Scrap Searched 1 | . . 1 Spaces Dug 8 | . 8 . Terrain Destroyed 9 | . 9 . Melee . | . . . Projectile 9 | . 9 . AOE . | . . . Terrain Rammed . | . . . Walls Destroyed . | . . . Machines Disabled . | . . . Actions | -11 -10 -10 --------- Run | Yrd Mat Min Total 1035 | 169 637 229 Wait 243 | . 169 74 Move 643 | 121 376 146 Hop . | . . . Pick Up 33 | 16 17 . Fast Attach . | . . . Attach 18 | 8 10 . Detach . | . . . Swap 11 | 1 9 1 Drop 13 | 2 11 . Fire 74 | 21 45 8 Melee . | . . . Ram . | . . . Kick . | . . . Crush . | . . . Escape Stasis . | . . . Rewire . | . . . Trap . | . . . Miscellaneous . | . . . Route ------- -11/Scrapyard -10/Materials (discovered 3 exits: [*Min x2] / [*Sub]) -10/Mines History --------- Turn | Location | Event 11 | -11/Scrapyard | Discovered new exit (range 15) 286 | -11/Scrapyard | Entered Materials 340 | -10/Materials | Build established: Mutant 456 | -10/Materials | Crushed by falling debris 456 | -10/Materials | System corruption reached 10% 487 | -10/Materials | Lost 3 parts (1p1u1w) 599 | -10/Materials | Discovered new exit (range 10) 733 | -10/Materials | Discovered new exit (range 4) 786 | -10/Materials | Derelicts attacked the area 975 | -10/Materials | Discovered new exit (range 6) 1045 | -10/Materials | Entered Mines 1067 | -10/Mines | Assembled infested the area 1072 | -10/Mines | Assisted by a Guerilla fighting off Assembled 1127 | -10/Mines | Core integrity fell below 50% 1136 | -10/Mines | Core integrity fell below 20% 1156 | -10/Mines | Learned Materials stockpile data 1170 | -10/Mines | Lost 3 parts (1p1n1u) 1276 | -10/Mines | Destroyed by as-18485 with Assembled Blade Last Messages --------------- cycle. 01138_ The unstable cave ceiling collapses. 01138_ as-38484 suffers critical hit (Burn). 01138_ as-38484 destroyed. 01139_ K-01 Serf collects debris. 01139_ Lgt. Ion Engine destroyed. 01139_ D-53 Grenadier destroyed. 01141_ The unstable cave ceiling collapses. 01142_ K-01 Serf collects debris. 01143_ The unstable cave ceiling collapses. 01146_ K-01 Serf collects debris. 01156_ Acquired derelict log, extracted data. Data stored: Materials stockpile data. 01177_ System corrupted: Component data lost. 01236_ System corrupted: Matter fused (-5). 01251_ Wheel destroyed. 01251_ as-09035 destroyed. 01254_ Acquired 9 matter. 01263_ System corrupted: Matter fused (-5). Map ----- +----------------------------------------------------+ | ??????????#%###### ##?? ????????????????? | | ??????????#"#????## ##???####???????????????? | | ??????????# #?????# #???????????????????????? | | ??????????#%#?????# #???????????????????????? | | ????????### #?????# #???????????????????????? | | ???????## # ####??# #???????????????????????? | | ???????# #??# #???????????????????????? | | ??????## ???# #???????????????????????? | | ??????? ???? ????????????????????????? | | ??????## % #??? ????????????????????????? | | ??????# #??? ????????????????????????? | | ???????# # #???#????????????????????????? | | ??????## #????????????????????????????? | | ?????## ##????????????????????????????? | | ????## ##???????????????????????????? | | ????# #####?????????#####?????????? | | ????# # ##???????## ##????????? | | ????# #??????## ##???????? | | ??? ## ##????## ##??????? | | ?# ### ## ###### #??????? | | ?#???####?# #??????? | | ??????????# #??????? | | ??????????##### """ #???????? | | ??????????????### """ #????????? | | ????????????????## """ #????????? | | ???????????????#### @ #????????? | | ??????????????## a### ## ##????????? | | ??????????????# # ##?# ### #?????????? | | ??????????????# ### #??# #?# #?????????? | | ??? = ## # %####??# #?# #?????????? | | ??? *%[ #??# #?# #?????????? | | ??? = % ## ### #??# #?# #?????????? | | ????? ???### ##??# #?# #?????????? | | ???????? ??????## ##???# ### #?????????? | | ????????????????#######????# #?????????? | | ???????????????????????????# ######?????????? | | ???????????????????????????# #??????????????? | | ???????????????????????##### ##?????????????? | | ???????????????????????# #?????????????? | | ???????????????????????# #?????????????? | | ???????????????????????# #?????????????? | | ???????????????????????# """ #?????????????? | | ???????????????????????# """ #?????????????? | | ???????????????????????# """ #?????????????? | | ???????????????????????# #?????????????? | | ???????????????????????########?????????????? | | ????????????????????????????????????????????? | | ????????????????????????????????????????????? | | | | | +----------------------------------------------------+ Best States ------------- Heat Dissipation 47 Energy Generation 10 Energy Capacity 250 Matter Stores 279 Matter Capacity 300 Sight Range 16 Terrain Scan Density 10 Armor Coverage 225 Evasion (%) 55 Recoil Reduction 2 Item Schematics ----------------- None Robot Schematics ------------------ None Fabricated ------------ Nothing Repaired ---------- Nothing Studied --------- None Alien Tech Used ----------------- None Achievements -------------- Unlikely Earthworm Challenges ------------ None Game ------ Seed DefenseTrackerDevice Manual? 0 Play Time 00:18:08 Cumulative 13.2 hours Start 2026.07.29 @ 07:53:05 End 2026.07.29 @ 08:08:31 Sessions 1 Manual Loads 0 Difficulty Rogue Special Mode None Game No. 20 Rogue 20 Adventurer 0 Explorer 0 Win Type - Total 0 Types 0/0/0/0/0/0/0/0/0/0 Lore% 12 Gallery% 13 Achievement% 15 Wizard Run 0 Options --------- Layout 1 ASCII 0 Keyboard 0 Movement Mouse Keybinds 0 Fullscreen 1 Font 48/Smallcaps Map View 50x35 Zoom Use 0% Tactical HUD 1 Map Filters NONE Filters NONE Steam 1 RUN: 853fefa9-9f50-42d3-b62d-c076896bb3ff